bitfinex/quotes_ETHUSD_20241004
["timestamp","ask_amount","ask_price","bid_price","bid_amount"]
[1728010201937,2.10145,2379.3,2379.0,0.7844]
[1728010202542,2.10133,2379.5,2379.0,2.59253324]
[1728010202743,3.0,2379.6,2379.2,0.7844]
[1728010202929,2.10121,2379.6,2379.2,0.7844]
[1728010203129,5.10121,2379.6,2379.2,0.7844]
[1728010203645,2.10114,2379.7,2379.2,0.7844]
[1728010203841,2.10129,2379.5,2379.2,1.29102035]
[1728010204172,2.10142,2379.4,2379.2,1.29102035]
[1728010204329,0.8007,2379.5,2379.0,1.70410396]
[1728010204668,2.10163,2379.1,2378.8,1.70410396]
[1728010209687,2.10152,2379.3,2378.8,1.70410396]
[1728010209844,2.10182,2378.9,2378.6,1.70410396]
[1728010210174,2.10176,2379.0,2378.7,0.88240396]
[1728010210471,2.10176,2379.0,2378.6,2.14530594]
[1728010210472,4.20356,2379.0,2378.6,1.70410396]
[1728010210635,4.20356,2379.0,2378.6,2.39367008]
[1728010210838,2.10176,2379.0,2378.6,2.39367008]
[1728010211233,2.1016,2379.2,2378.8,0.88240396]
[1728010211547,2.1016,2379.2,2378.9,0.8217]
[1728010211746,2.1016,2379.2,2378.9,1.33466899]
[1728010213132,4.20322,2379.2,2378.9,1.33466899]
[1728010213675,2.10164,2379.1,2378.9,1.33466899]
[1728010215968,2.10172,2379.0,2378.9,1.33466899]
[1728010216155,2.10164,2379.1,2378.7,1.78817432]
[1728010216156,2.10181,2378.9,2378.7,1.78817432]
[1728010216480,2.10181,2378.9,2378.7,1.70410396]
[1728010217344,2.10181,2378.9,2378.7,0.8217]
[1728010217841,2.1019,2378.8,2378.7,0.8217]
[1728010218046,2.10181,2378.9,2378.5,1.70410396]
[1728010218349,2.10191,2378.8,2378.6,0.30277099]
[1728010219382,2.10181,2378.9,2378.6,0.30277099]
[1728010219656,4.2037,2378.9,2378.6,0.30277099]
[1728010219846,4.20367,2378.9,2378.6,0.30277099]
[1728010220056,2.10181,2378.9,2378.6,0.30277099]
[1728010220482,2.10194,2378.8,2378.6,0.30277099]
[1728010221190,4.20368,2378.9,2378.6,0.30277099]
[1728010221584,4.20367,2378.9,2378.6,0.30277099]
[1728010221799,2.10191,2378.8,2378.6,0.30277099]
[1728010222357,2.10181,2378.9,2378.6,0.30277099]
[1728010223191,2.10191,2378.8,2378.6,0.30277099]
[1728010223595,2.10181,2378.9,2378.6,0.30277099]
[1728010224292,2.1019,2378.8,2378.6,0.30277099]
[1728010224757,2.1019,2378.8,2378.5,0.8217]
[1728010225163,2.10181,2378.9,2378.5,0.8217]
[1728010225977,4.20369,2378.9,2378.5,0.8217]
[1728010226392,2.1019,2378.8,2378.5,0.8217]
[1728010226870,2.10181,2378.9,2378.5,0.8217]
[1728010227205,2.10181,2378.9,2378.5,1.2023414]
[1728010227522,2.10225,2378.4,2378.3,0.7882]
[1728010227822,0.44782748,2379.9,2378.1,1.32360594]
[1728010227823,2.10243,2378.2,2378.1,0.88240396]
[1728010227971,2.10243,2378.2,2377.8,1.67060396]
[1728010227972,2.1026,2378.0,2377.8,1.67060396]
[1728010228171,2.1026,2378.0,2377.8,1.35624262]
[1728010228514,2.1026,2378.0,2377.8,0.56804262]
[1728010228726,2.1026,2378.0,2377.6,0.7882]
[1728010228907,2.1026,2378.0,2377.6,1.67060396]
[1728010229423,2.1028,2377.8,2377.6,0.7882]
[1728010229580,4.20563,2377.8,2377.6,0.7882]
[1728010229781,2.1028,2377.8,2377.6,0.7882]
[1728010230307,2.10265,2378.0,2377.6,0.7882]
[1728010230492,2.10275,2377.9,2377.6,0.7882]
[1728010230814,2.10271,2377.9,2377.6,0.7882]
[1728010231344,2.10265,2378.0,2377.6,0.7882]
[1728010231615,2.10265,2378.0,2377.6,1.1655724]
[1728010234086,2.10265,2378.0,2377.6,1.24968187]
[1728010234390,4.20492,2378.2,2377.6,1.24968187]
[1728010234595,2.10252,2378.1,2377.6,1.24968187]
[1728010234995,2.10252,2378.1,2377.6,3.35263187]
[1728010235314,2.10252,2378.1,2377.7,0.41936915]
[1728010235522,2.10252,2378.1,2377.7,0.33526319]
[1728010238236,2.10252,2378.1,2377.6,1.1655724]
[1728010239399,3.8124,2378.4,2377.9,0.8296]
[1728010239400,5.10231,2378.4,2377.9,0.8296]
[1728010239604,2.10235,2378.3,2377.9,0.8296]
[1728010239837,5.10235,2378.3,2377.9,0.8296]
[1728010240210,2.10244,2378.2,2377.9,0.8296]
[1728010240712,2.10231,2378.4,2378.0,0.55]
[1728010240942,2.102,2378.7,2378.2,0.8296]
[1728010241145,2.10167,2379.1,2378.4,0.8296]
[1728010241146,2.10195,2378.8,2378.4,0.8296]
[1728010241447,2.10177,2379.0,2378.6,0.8296]
[1728010241949,2.1019,2378.8,2378.6,0.8296]
[1728010243017,2.10177,2379.0,2378.6,0.91367423]
[1728010243713,2.10177,2379.0,2378.7,0.55]
[1728010243955,4.20321,2379.2,2378.7,0.55]
[1728010244826,2.10164,2379.1,2378.7,0.55]
[1728010245144,3.0,2379.3,2378.7,0.55]
[1728010245145,2.10179,2379.0,2378.7,0.55]
[1728010246412,2.10177,2379.0,2378.6,0.8296]
[1728010246619,2.10198,2378.7,2378.6,0.8296]
[1728010246924,3.0,2378.9,2378.2,0.8296]
[1728010247150,2.10225,2378.4,2378.2,0.8296]
[1728010247458,4.20429,2378.6,2378.2,0.8296]
[1728010247653,2.10218,2378.5,2378.2,0.8296]
[1728010248215,2.10213,2378.6,2378.2,0.8296]
[1728010248847,2.10213,2378.6,2378.2,0.91368547]
[1728010249759,2.10213,2378.6,2378.2,1.21530902]
[1728010250817,4.20429,2378.6,2378.2,1.21530902]
[1728010251959,2.10213,2378.6,2378.2,1.21530902]
[1728010252161,4.20426,2378.6,2378.2,1.21530902]
[1728010252717,2.10213,2378.6,2378.2,1.21530902]
[1728010252928,2.10216,2378.5,2378.2,0.8296]
[1728010256501,2.10226,2378.4,2378.2,0.8296]
[1728010258183,2.10213,2378.6,2378.2,0.8296]
[1728010258389,4.20425,2378.6,2378.2,0.8296]
[1728010259913,2.1022,2378.5,2378.2,0.8296]
[1728010260418,2.1022,2378.5,2378.2,1.12282]
[1728010260805,2.10212,2378.6,2378.2,1.12282]
[1728010261005,2.10226,2378.4,2378.2,0.8296]
[1728010266339,0.7622,2378.8,2378.0,0.08408992]
[1728010266583,0.7702,2378.4,2377.7,1.68830396]
[1728010266755,2.10218,2378.5,2377.4,9.66242301]
[1728010266756,2.10296,2377.6,2377.4,1.68830396]
[1728010266894,2.10322,2377.3,2377.2,0.88240396]
[1728010267105,2.10331,2377.2,2377.0,0.8059]
[1728010267419,2.10331,2377.2,2376.6,3.12367562]
[1728010267420,2.10366,2376.8,2376.6,0.88240396]
[1728010267623,2.10366,2376.8,2376.4,1.68830396]
[1728010267954,2.10366,2376.8,2376.4,1.98949495]
[1728010267955,2.10384,2376.6,2376.4,1.98949495]
[1728010268092,2.10384,2376.6,2376.4,1.10709099]
[1728010268292,2.10384,2376.6,2376.4,0.30119099]
[1728010268542,2.10384,2376.6,2376.2,0.89005241]
[1728010268832,2.10411,2376.3,2376.2,0.8059]
[1728010269401,2.10407,2376.4,2376.2,0.8059]
[1728010269841,2.10407,2376.4,2375.8,0.88240396]
[1728010269842,2.10407,2376.4,2375.8,0.8059]
[1728010270143,2.10389,2376.6,2375.9,2.1434036]
[1728010270436,2.10389,2376.6,2376.0,0.08415839]
[1728010270437,4.2078,2376.6,2376.0,0.08415839]
[1728010270598,2.10389,2376.6,2375.9,2.0592404]
[1728010270800,2.10389,2376.6,2376.0,0.8887628]
[1728010271316,2.10389,2376.6,2376.1,0.6341584]
[1728010271533,4.20779,2376.6,2376.1,0.6341584]
[1728010271899,2.10393,2376.5,2376.1,0.6341584]
[1728010272317,4.2078,2376.6,2376.1,0.6341584]
[1728010272524,2.10393,2376.5,2376.2,0.54409188]
[1728010273153,2.10393,2376.5,2376.1,0.6341584]
[1728010274011,3.0,2376.8,2376.1,0.6341584]
[1728010274012,2.10402,2376.4,2376.1,0.55]
[1728010275114,4.20781,2376.6,2376.1,0.55]
[1728010275722,2.10395,2376.5,2376.0,0.8887628]
[1728010276053,2.10395,2376.5,2376.1,0.29480032]
[1728010276423,2.10395,2376.5,2376.0,0.8887628]
[1728010276957,2.10389,2376.6,2376.1,0.63416092]
[1728010277188,2.10389,2376.6,2376.2,0.8059]
[1728010277325,2.10389,2376.6,2376.2,0.89005804]
[1728010277819,2.10389,2376.6,2376.2,0.89005805]
[1728010278359,2.10389,2376.6,2376.2,1.12294014]
[1728010278544,2.10389,2376.6,2376.2,1.03878209]
[1728010279067,2.10389,2376.6,2376.2,1.12294011]
[1728010279359,2.10389,2376.6,2376.2,1.03878209]
[1728010280423,4.20781,2376.6,2376.2,1.12294012]
[1728010280622,2.10389,2376.6,2376.2,1.12294012]
[1728010281158,4.20779,2376.6,2376.2,1.12294012]
[1728010281557,2.10389,2376.6,2376.2,1.03878209]
[1728010283228,2.10395,2376.5,2376.2,1.03878209]
[1728010283870,2.10389,2376.6,2376.2,1.03878209]
[1728010284039,2.10389,2376.6,2376.3,0.0841561]
[1728010284256,2.10389,2376.6,2376.2,1.03878209]
[1728010286086,2.10401,2376.5,2376.2,1.03878209]
[1728010289552,2.10389,2376.6,2376.2,1.03878209]
[1728010289754,4.20778,2376.6,2376.2,1.03878209]
[1728010291290,2.10395,2376.5,2376.2,1.03878209]
[1728010292091,2.10389,2376.6,2376.2,1.12294001]
[1728010292787,2.10389,2376.6,2376.2,1.03878209]
[1728010293206,2.10389,2376.6,2376.2,1.12294002]
[1728010293408,2.10389,2376.6,2376.2,1.03878209]
[1728010293584,2.10389,2376.6,2376.2,1.12294002]
[1728010293782,2.10389,2376.6,2376.2,1.03878209]
[1728010294302,2.10398,2376.5,2376.2,1.03878209]
[1728010295373,2.10398,2376.5,2376.3,0.45951617]
[1728010295608,2.10398,2376.5,2376.4,0.45951617]
[1728010295775,2.10389,2376.6,2376.4,0.45951617]
[1728010295970,2.10389,2376.6,2376.2,1.11413262]
[1728010296171,2.10389,2376.6,2376.3,0.83633994]
[1728010296372,2.10389,2376.6,2376.4,1.19693162]
[1728010296573,2.10389,2376.6,2376.5,1.19693162]
[1728010299284,2.10375,2376.7,2376.5,1.19693162]
[1728010299505,2.10375,2376.7,2376.6,2.02803162]
[1728010299717,2.10375,2376.7,2376.6,1.19693162]
[1728010300547,2.10375,2376.7,2376.3,0.8311]
[1728010300843,2.10388,2376.6,2376.4,2.12220744]
[1728010301135,2.10375,2376.7,2376.5,1.19950883]
[1728010301339,2.10375,2376.7,2376.4,0.31861895]
[1728010301340,2.10375,2376.7,2376.6,1.19950883]
[1728010302418,2.90545,2376.7,2376.6,1.19950883]
[1728010303115,2.90545,2376.7,2376.6,0.46134955]
[1728010303716,2.90545,2376.7,2376.0,0.8311]
[1728010303717,2.10414,2376.3,2376.0,0.8311]
[1728010303913,2.1043,2376.1,2375.8,1.71350396]
[1728010304139,2.1043,2376.1,2375.8,0.8311]
[1728010304350,2.1043,2376.1,2375.9,2.12241432]
[1728010304516,2.1043,2376.1,2376.0,1.66104981]
[1728010304847,5.01003,2376.3,2376.0,2.12245253]
[1728010305025,5.01003,2376.3,2376.1,1.19964708]
[1728010305228,2.90584,2376.3,2376.2,1.19964708]
[1728010305542,2.90584,2376.3,2376.2,0.46140272]
[1728010306946,2.10424,2376.2,2375.9,0.73820615]
[1728010307329,2.10424,2376.2,2376.0,1.19869057]
[1728010307528,2.90584,2376.3,2376.1,0.46103548]
[1728010307728,2.10414,2376.3,2376.2,0.46103548]
[1728010310150,2.10414,2376.3,2375.9,1.62061011]
[1728010310476,2.10414,2376.3,2376.0,1.19808925]
[1728010310682,2.10414,2376.3,2376.1,0.46080339]
[1728010310838,2.10414,2376.3,2376.2,0.46075031]
[1728010310839,4.20832,2376.3,2376.2,0.46075031]
[1728010311039,2.10414,2376.3,2376.2,0.46075031]
[1728010311281,2.10414,2376.3,2376.2,0.46074901]
[1728010311444,2.10403,2376.4,2376.2,0.46074901]
[1728010311794,2.10399,2376.5,2376.3,0.46074901]
[1728010311981,2.10399,2376.5,2376.4,0.46067846]
[1728010312152,2.10399,2376.5,2376.4,0.88240396]
[1728010312979,2.10399,2376.5,2376.4,1.34305792]
[1728010313190,2.10399,2376.5,2376.3,1.32360594]
[1728010313377,2.10399,2376.5,2376.2,1.76575133]
[1728010313378,2.10399,2376.5,2376.4,1.78423841]
[1728010313580,2.10399,2376.5,2376.4,1.78423814]
[1728010313895,2.10399,2376.5,2376.3,1.32360594]
[1728010314263,2.10399,2376.5,2376.4,0.8842204]
[1728010317415,2.10399,2376.5,2376.3,0.8842204]
[1728010322915,2.10385,2376.6,2376.3,0.8842204]
[1728010323139,2.10393,2376.5,2376.3,0.8842204]
[1728010323640,3.0,2376.7,2376.3,1.45073559]
[1728010323802,2.10389,2376.6,2376.4,2.11071253]
[1728010324002,2.10389,2376.6,2376.4,1.6500204]
[1728010324937,7.20742,2376.8,2376.4,1.6500204]
[1728010325147,7.20742,2376.8,2376.4,2.38261156]
[1728010325343,5.1037,2376.8,2376.4,2.38261156]
[1728010325549,5.10376,2376.7,2376.4,2.38261156]
[1728010326200,5.10376,2376.7,2376.4,1.6500204]
[1728010327341,5.1037,2376.8,2376.5,0.8842204]
[1728010327519,5.1037,2376.8,2376.4,1.6500204]
[1728010327718,5.1037,2376.8,2376.5,0.8842204]
[1728010328823,7.20743,2376.8,2376.4,1.6500204]
[1728010329019,5.1037,2376.8,2376.5,0.8842204]
[1728010329548,5.1037,2376.8,2376.4,1.6500204]
[1728010329745,3.0,2376.8,2376.4,1.6500204]
[1728010330042,2.86573,2376.5,2376.3,0.8842204]
[1728010330256,2.10411,2376.3,2376.2,0.8842204]
[1728010330406,2.10411,2376.3,2376.1,1.32360594]
[1728010330407,2.10419,2376.2,2376.1,0.8842204]
[1728010330686,2.86608,2376.1,2376.0,0.8842204]
[1728010330879,2.10446,2375.9,2375.8,0.8842204]
[1728010331095,2.10446,2375.9,2375.7,0.8842204]
[1728010331320,2.10437,2376.0,2375.7,0.8842204]
[1728010332022,2.10437,2376.0,2375.6,0.8842204]
[1728010333015,0.7618,2376.1,2375.6,1.57163117]
[1728010333218,5.10425,2376.2,2375.7,1.34471115]
[1728010333514,5.10425,2376.2,2375.7,2.9888504]
[1728010334433,2.10425,2376.2,2375.7,2.9888504]
[1728010334602,2.10425,2376.2,2375.8,0.71045071]
[1728010335127,2.10453,2375.9,2375.7,0.8842204]
[1728010335428,4.20917,2375.8,2375.5,0.8842204]
[1728010335645,2.10455,2375.8,2375.5,0.8842204]
[1728010335984,2.10464,2375.7,2375.5,0.8842204]
[1728010336190,2.10473,2375.6,2375.4,0.8842204]
[1728010336509,2.10482,2375.5,2375.2,0.8842204]
[1728010336883,2.86662,2375.5,2375.1,1.6799204]
[1728010337288,0.7618,2375.5,2375.1,1.6799204]
[1728010337529,0.7618,2375.5,2375.1,2.77790217]
[1728010337698,2.86663,2375.5,2375.1,2.77790217]
[1728010338025,0.7618,2375.5,2375.1,2.77790217]
[1728010338333,0.7618,2375.5,2375.1,1.89368177]
[1728010338895,2.10459,2375.8,2375.1,4.88300217]
[1728010338896,2.86639,2375.8,2375.1,4.88300217]
[1728010339229,2.86639,2375.8,2375.3,2.10498]
[1728010339815,2.86639,2375.8,2375.2,0.82066081]
[1728010340153,2.10465,2375.7,2375.2,0.82066081]
[1728010340515,4.97101,2375.8,2375.2,2.92574081]
[1728010340714,2.86639,2375.8,2375.2,2.92574081]
[1728010341130,2.86639,2375.8,2375.3,0.78929303]
[1728010341756,0.7618,2375.8,2375.3,2.89422303]
[1728010341985,0.7618,2375.8,2375.3,2.10493]
[1728010343166,0.7618,2375.8,2375.3,4.20986]
[1728010343667,0.7618,2375.8,2375.3,2.10493]
[1728010344230,2.86636,2375.8,2375.3,2.10493]
[1728010345259,0.7618,2375.7,2375.3,2.10493]
[1728010346331,0.7618,2375.7,2375.3,2.605506]
[1728010349542,0.7618,2375.7,2375.3,0.500576]
[1728010349737,0.7618,2375.7,2375.2,2.10506]
[1728010350152,2.86649,2375.7,2375.1,2.90083]
[1728010350560,0.7618,2375.7,2375.2,2.10508]
[1728010350961,0.7618,2375.7,2375.3,2.10498]
[1728010351166,5.86631,2375.9,2375.3,2.395008]
[1728010351484,5.86631,2375.9,2375.4,2.1049]
[1728010351485,3.7618,2375.9,2375.4,2.1049]
[1728010352279,3.7618,2375.9,2375.3,2.395008]
[1728010352442,3.0,2375.9,2375.4,0.7957]
[1728010352789,5.10452,2375.9,2375.4,0.7957]
[1728010353500,5.10452,2375.9,2375.4,2.9006]
[1728010354163,5.10452,2375.9,2375.4,0.7957]
[1728010359372,5.10452,2375.9,2375.4,1.33368205]
[1728010359373,3.0,2375.9,2375.4,1.33368205]
[1728010359575,5.10443,2376.0,2375.5,2.10481]
[1728010360203,7.20888,2376.0,2375.5,2.10481]
[1728010360409,5.10443,2376.0,2375.5,2.10481]
[1728010360594,7.20885,2376.0,2375.5,2.10481]
[1728010361025,5.10449,2375.9,2375.4,1.33368205]
[1728010361231,5.10449,2375.9,2375.5,0.46088478]
[1728010361425,5.10449,2375.9,2375.4,3.43858205]
[1728010361617,5.10449,2375.9,2375.5,0.4609209]
[1728010361960,5.10449,2375.9,2375.4,1.33368205]
[1728010362128,3.0,2375.9,2375.4,3.43857205]
[1728010362455,5.10442,2376.0,2375.5,1.04427558]
[1728010362610,2.10451,2375.9,2375.4,0.7957]
[1728010362947,5.10451,2375.9,2375.5,0.46095948]
[1728010363125,5.10451,2375.9,2375.4,0.87988609]
[1728010363325,5.10451,2375.9,2375.5,0.46095597]
[1728010363527,5.10451,2375.9,2375.4,0.7957]
[1728010363714,5.10451,2375.9,2375.5,0.46106492]
[1728010363914,5.10451,2375.9,2375.4,1.1147688]
[1728010364114,5.10442,2376.0,2375.5,0.46106607]
[1728010364447,5.10442,2376.0,2375.6,0.4611929]
[1728010364753,2.10447,2375.9,2375.4,3.30378482]
[1728010364950,2.10447,2375.9,2375.5,1.03106918]
[1728010365119,2.10447,2375.9,2375.6,0.4611919]
[1728010365319,2.10447,2375.9,2375.5,0.56987728]
[1728010365519,2.10447,2375.9,2375.6,0.46129696]
[1728010365730,2.10447,2375.9,2375.5,0.56987728]
[1728010365929,2.10447,2375.9,2375.6,0.46129698]
[1728010366255,2.10447,2375.9,2375.5,0.56987728]
[1728010366448,2.10447,2375.9,2375.6,0.46129766]
[1728010366628,2.10447,2375.9,2375.4,1.1147688]
[1728010366953,2.10447,2375.9,2375.5,0.81227483]
[1728010367155,2.10447,2375.9,2375.6,0.46129915]
[1728010367349,2.10447,2375.9,2375.5,0.35097568]
[1728010367652,2.10447,2375.9,2375.6,0.46131584]
[1728010367836,2.10447,2375.9,2375.5,0.35097568]
[1728010368042,2.10447,2375.9,2375.6,0.46131457]
[1728010368214,2.10447,2375.9,2375.4,1.1147688]
[1728010368416,2.10447,2375.9,2375.5,1.02283245]
[1728010368757,2.10447,2375.9,2375.6,0.46136277]
[1728010368916,2.10447,2375.9,2375.4,1.1147688]
[1728010369118,2.10447,2375.9,2375.5,0.46136199]
[1728010369317,2.10447,2375.9,2375.6,0.46136199]
[1728010369518,2.10447,2375.9,2375.4,3.2196688]
[1728010369756,2.10447,2375.9,2375.5,1.02282281]
[1728010370053,2.10447,2375.9,2375.6,0.46135713]
[1728010370251,2.10447,2375.9,2375.5,0.56146568]
[1728010370454,2.10447,2375.9,2375.6,0.46136995]
[1728010370658,2.10447,2375.9,2375.5,0.56146568]
[1728010370659,3.36717,2375.9,2375.5,0.56146568]
[1728010370814,3.36717,2375.9,2375.6,0.46137009]
[1728010371152,3.36717,2375.9,2375.5,0.56146568]
[1728010371459,3.36717,2375.9,2375.6,0.46136491]
[1728010371630,3.36717,2375.9,2375.5,0.56146568]
[1728010371836,3.36717,2375.9,2375.6,0.46136966]
[1728010372029,3.36717,2375.9,2375.5,0.56146568]
[1728010372555,3.36717,2375.9,2375.6,0.46137607]
[1728010372717,3.36717,2375.9,2375.5,0.56146568]
[1728010375131,0.7618,2376.1,2375.6,2.40616467]
[1728010375329,7.31,2376.6,2375.9,3.36712]
[1728010375330,4.17511,2376.4,2375.9,3.36712]
[1728010375749,4.17511,2376.4,2375.9,3.45128876]
[1728010375995,4.17511,2376.4,2376.0,0.61488443]
[1728010376364,3.0,2376.3,2376.0,1.38938443]
[1728010377117,3.0,2376.3,2375.9,0.8842204]
[1728010377410,3.36672,2376.2,2375.8,0.8842204]
[1728010377631,3.36686,2376.1,2375.8,0.8842204]
[1728010377790,0.8086,2376.1,2375.8,0.8842204]
[1728010378412,0.8086,2376.1,2375.8,1.44175103]
[1728010380606,3.36672,2376.2,2375.8,1.44175103]
[1728010382216,3.36672,2376.2,2375.8,0.8842204]
[1728010382402,3.36696,2376.1,2375.8,0.8842204]
[1728010382608,3.36696,2376.1,2375.7,1.6587204]
[1728010383360,3.36672,2376.2,2375.7,1.6587204]
[1728010383489,6.73352,2376.2,2375.7,1.6587204]
[1728010383681,3.36672,2376.2,2375.7,1.6587204]
[1728010383877,3.8086,2376.3,2375.7,0.8842204]
[1728010383878,3.36728,2375.8,2375.7,0.8842204]
[1728010384128,3.36742,2375.7,2375.6,0.8842204]
[1728010384290,3.36744,2375.7,2375.4,0.8842204]
[1728010384493,3.36771,2375.5,2375.4,0.8842204]
[1728010384925,3.36771,2375.5,2375.3,0.8842204]
[1728010385230,3.36759,2375.6,2375.4,0.8842204]
[1728010385521,3.36771,2375.5,2375.3,0.8842204]
[1728010386103,3.0,2375.6,2375.3,0.8842204]
[1728010386305,3.36783,2375.5,2375.2,0.8842204]
[1728010386514,6.36763,2375.6,2375.2,0.8842204]
[1728010386725,3.0,2375.6,2375.2,0.8842204]
[1728010387101,6.36764,2375.6,2375.2,0.8842204]
[1728010387899,6.36764,2375.6,2375.3,0.8842204]
[1728010390646,3.0,2375.6,2375.3,0.8842204]
[1728010392148,6.36757,2375.6,2375.3,0.8842204]
[1728010392455,3.0,2375.9,2375.4,5.0174604]
[1728010392655,3.0,2375.9,2375.5,0.8842204]
[1728010393009,3.0,2375.9,2375.6,0.8842204]
[1728010394236,3.0,2375.9,2375.5,4.2518404]
[1728010394417,3.0,2375.9,2375.5,5.46280603]
[1728010395349,6.36716,2375.9,2375.5,2.09518603]
[1728010396028,6.36716,2375.9,2375.5,1.21096563]
[1728010396212,3.0,2375.9,2375.5,0.8842204]
[1728010396417,3.36771,2375.5,2375.4,0.8842204]
[1728010396725,3.36771,2375.5,2375.3,1.32360594]
[1728010396726,3.36771,2375.5,2375.3,0.8842204]
[1728010396940,6.7354,2375.6,2375.3,0.8842204]
[1728010397617,3.36766,2375.6,2375.3,0.8842204]
[1728010398041,3.36772,2375.5,2375.3,0.8842204]
[1728010399426,3.36772,2375.5,2375.2,0.8842204]
[1728010399821,4.17999,2375.7,2375.2,0.8842204]
[1728010400209,7.54751,2375.7,2375.2,0.8842204]
[1728010400413,4.17999,2375.7,2375.2,0.8842204]
[1728010400615,3.36749,2375.7,2375.3,1.6497204]
[1728010402014,3.36772,2375.5,2375.3,1.6497204]
[1728010402231,6.73499,2375.7,2375.3,0.7655]
[1728010402467,6.73499,2375.7,2375.3,1.6497204]
[1728010402767,3.36757,2375.6,2375.3,1.6497204]
[1728010403136,3.36749,2375.7,2375.3,1.6497204]
[1728010404555,3.36749,2375.7,2375.3,2.79726517]
[1728010406433,6.36724,2375.9,2375.3,2.03176517]
[1728010406635,3.0,2375.9,2375.5,0.7655]
[1728010406879,3.0,2375.9,2375.5,5.0174104]
[1728010407562,7.31,2376.0,2375.5,5.0174104]
[1728010407763,6.73386,2376.1,2375.6,0.8842204]
[1728010408676,3.36689,2376.1,2375.6,0.8842204]
[1728010409641,7.17924,2376.2,2375.6,1.87619989]
[1728010409992,6.36674,2376.2,2375.7,5.0171404]
[1728010410780,3.8125,2376.4,2375.7,5.57779116]
[1728010410980,3.8125,2376.4,2375.9,0.7655]
[1728010410981,3.36653,2376.4,2375.9,0.7655]
[1728010411285,3.36653,2376.4,2376.0,0.56510995]
[1728010412389,3.3666,2376.3,2376.0,0.56510995]
[1728010413299,3.36675,2376.2,2375.9,0.7655]
[1728010413842,3.3666,2376.3,2375.9,0.7655]
[1728010414269,3.36672,2376.2,2375.9,0.7655]
[1728010414447,3.3666,2376.3,2375.9,0.7655]
[1728010414850,6.73328,2376.3,2375.9,0.7655]
[1728010415050,3.3666,2376.3,2375.9,1.45456763]
[1728010415851,3.36672,2376.2,2375.9,1.45456763]
[1728010416383,3.36687,2376.1,2375.9,0.7655]
[1728010416749,3.367,2376.0,2375.7,0.8177]
[1728010416962,3.367,2376.0,2375.6,1.87619989]
[1728010417194,3.36687,2376.1,2375.6,1.87619989]
[1728010417195,3.36714,2375.9,2375.6,0.99197949]
[1728010417761,3.36687,2376.1,2375.6,0.99197949]
[1728010417991,3.36704,2376.0,2375.6,0.99197949]
[1728010420389,3.36722,2375.9,2375.5,1.7019204]
[1728010420589,3.3673,2375.8,2375.5,0.8177]
[1728010420947,4.12132,2375.9,2375.4,0.8842204]
[1728010421203,4.12132,2375.9,2375.4,1.61836717]
[1728010421880,4.12132,2375.9,2375.4,0.73414677]
[1728010422077,3.3673,2375.8,2375.4,0.73414677]
[1728010422265,3.36744,2375.7,2375.3,1.7019204]
[1728010422875,3.0,2375.8,2375.3,1.7019204]
[1728010423188,3.0,2375.8,2375.3,5.0699004]
[1728010424199,6.36729,2375.8,2375.3,5.0699004]
[1728010424714,3.0,2375.8,2375.3,8.4378204]
[1728010425014,3.0,2375.8,2375.3,5.0698404]
[1728010425403,3.0,2375.8,2375.3,8.4377504]
[1728010425572,3.0,2375.8,2375.3,9.59046117]
[1728010425880,6.3673,2375.8,2375.3,6.22254117]
[1728010426264,3.0,2375.8,2375.3,1.7019204]
[1728010426469,3.36765,2375.6,2375.2,0.8842204]
[1728010426700,3.36771,2375.5,2375.2,0.8842204]
[1728010426903,4.12167,2375.6,2375.2,0.8842204]
[1728010431474,3.36757,2375.6,2375.2,0.8842204]
[1728010433918,3.36771,2375.5,2375.2,0.8842204]
[1728010434122,3.36771,2375.5,2375.1,1.7019204]
[1728010434326,3.36771,2375.5,2375.2,0.8842204]
[1728010435536,3.36771,2375.5,2375.1,1.7019204]
[1728010435732,3.36771,2375.5,2375.1,2.8992555]
[1728010436123,3.0,2375.9,2375.1,0.8842204]
[1728010436436,4.17484,2375.4,2375.0,2.0]
[1728010436597,3.368,2375.3,2375.0,2.0]
[1728010436938,4.17484,2375.4,2375.0,2.0]
[1728010436939,7.54278,2375.4,2375.0,2.0]
[1728010437296,3.3681,2375.3,2375.0,2.0]
[1728010438798,3.36816,2375.2,2375.0,2.0]
[1728010439505,3.36827,2375.1,2375.0,2.0]
[1728010439936,3.36816,2375.2,2375.0,2.0]
[1728010440248,3.36827,2375.1,2375.0,2.0]
[1728010440446,3.36816,2375.2,2375.0,2.0]
[1728010440825,3.0,2375.6,2375.0,2.0]
[1728010440826,3.36771,2375.5,2375.0,2.36706204]
[1728010441027,3.0,2375.4,2375.0,5.73547204]
[1728010441456,3.36792,2375.4,2375.0,2.36706204]
[1728010442023,6.73586,2375.4,2375.0,2.36706204]
[1728010442222,3.36792,2375.4,2375.0,2.36706204]
[1728010443275,3.36801,2375.3,2375.0,2.36706204]
[1728010443562,3.36792,2375.4,2375.0,2.36706204]
[1728010443965,7.17457,2375.6,2375.1,0.40376824]
[1728010444131,9.73537,2375.6,2375.1,1.23456824]
[1728010444460,3.0,2375.4,2375.1,1.23456824]
[1728010445878,6.36789,2375.4,2375.1,1.23456824]
[1728010446240,3.0,2375.4,2375.1,1.23456824]
[1728010447125,6.7356,2375.5,2375.2,0.36016303]
[1728010447566,6.73563,2375.5,2375.2,0.36016303]
[1728010447853,3.3678,2375.5,2375.2,0.36016303]
[1728010448174,6.73559,2375.5,2375.2,0.36016303]
[1728010449974,3.36785,2375.4,2375.2,0.36016303]
[1728010451903,3.36751,2375.7,2375.2,0.36016303]
[1728010452084,3.36723,2375.9,2375.4,0.8308]
[1728010452897,3.36729,2375.8,2375.4,0.8308]
[1728010453181,3.36729,2375.8,2375.5,0.4282968]
[1728010454448,3.36723,2375.9,2375.6,0.8308]
[1728010454786,3.36742,2375.7,2375.6,0.8308]
[1728010455688,3.36723,2375.9,2375.6,0.8308]
[1728010456191,6.73446,2375.9,2375.6,0.8308]